{"text_format":"3","workbook":"xlsx","n_sheets":1,"sheets":["Sheet1"],"not_rendered":{"defined_names":1},"read":"whole","date_system":"1900"}

{"sheet":"Sheet1","index":0,"n_rows":79,"n_cols":7,"rows_kept":79,"merged":[[0,0,0,6],[1,0,1,6],[2,0,2,6],[5,0,5,6],[21,1,22,1],[21,2,22,2],[21,3,22,3],[21,5,22,5],[21,6,22,6],[23,0,23,5],[35,0,36,0],[37,0,38,0],[40,1,41,1],[40,2,41,2],[40,3,41,3],[40,4,41,4],[40,5,41,5],[40,6,41,6],[42,0,42,5],[48,0,49,0],[51,1,52,1],[51,2,52,2],[51,3,52,3],[51,4,52,4],[51,5,52,5],[51,6,52,6],[53,0,53,5],[65,1,66,1],[65,2,66,2],[65,3,66,3],[65,4,66,4],[65,5,66,5],[65,6,66,6],[67,0,67,5],[70,0,70,5],[72,1,72,6],[75,1,75,6],[76,1,76,6],[77,1,77,6],[78,1,78,6]]}
["City of Foley Athletic Uniform Price Sheet - REBID"]
[]
["REC-072618"]
[]
[]
["NOTE: Products quoted should be equal to or better than current product listed.  Quantities are based on previous orders and are listed for informational purposes and for overall price comparison.   There are no guarantees to the quantity of future orders.  All pricing shall include shipping."]
[]
["Blue Highlighted Cells are Fillable and should be Completed"]
[]
["BASEBALL UNIFORMS","Current Product  (Equal to or Better Than)","Estimated Order Qty.","Sizes","Brand Name & Item Number Quoted (If different from current product listed.)","Unit Price","Extended Price"]
["Player jerseys to be two-button dry-fit solid color moisture wicking t-shirt style and to include a custom design of a sponsor, team, and/or mascot logo per team on front and number on back. 6U, 8U, 10U, & 12U age-groups.","Augusta 2-button mesh 427",317,"Youth",null,null,{"$f":"C11*F11","v":0}]
["Additional Charge:   2X - $________, 3X - $________, 4X - $________","Augusta 2-button mesh 426",38,"Adult",null,null,{"$f":"C12*F12","v":0}]
["Higher quality grade two button athletic mesh, dry fit moisture wicking, or combination of both with trim or piping and to include custom design and/or name per team on front and number on back. 14U age group.","Augusta 1526 multi-color moisture - spandex",9,"Youth",null,null,0]
["Additional Charge:   2X - $________, 3X - $________, 4X - $________","Augusta 1525 multicolor moisture - spandex",31,"Adult",null,null,0]
["Elastic waist pants with drawstring, double knit polyester, reinforced legs. Black, navy or gray in color. 6U Tee-ball age-group.","Alleson LLBDK2",89,"Youth",null,null,0]
["Pro weight polyester with belt loops baseball pants, open legged ankle length. Black, navy or gray in color. 8U, 10U, 12U & 14U age-groups.","Alleson 605WLPY",204,"Youth",null,null,0]
["Additional Charge:   2X - $________, 3X - $________, 4X - $________","Alleson 605WLP ",62,"Adult",null,null,0]
["Belts must match jersey color or trim color. 8U, 10U, 12U & 14U age-groups.","Alleson 3BBA/3BBY",266,{"$nulls":3},0]
["Socks to match jersey or trim color. 6U Tee-ball age-group.","Augusta 6021",89,{"$nulls":3},0]
["Player and Coaches Caps adjustable pro mesh. Caps must match jersey color or trim color.  Caps shall be embroidered.  All age groups.                                    ","Pro mesh hat- Embroidered",365,"Youth",null,null,0]
[null,"Pro mesh hat- Embroidered",200,"Adult",null,null,0]
["Coaches jerseys to be the same as player’s jerseys without numbers on the back. ","Augusta 2-button mesh 426",111,"Adult",null,null,0]
["Additional Charge:   2X - $________, 3X - $________, 4X - $________"]
["BASEBALL SUBTOTAL:",{"$nulls":5},{"$f":"SUM(G11:G23)","v":0}]
[]
[]
[]
[]
[]
["SOFTBALL UNIFORMS","Current Product  (Equal to or Better Than)","Estimated Order Qty.","Sizes","Brand Name & Item Number Quoted (If different from current product listed.)","Unit Price","Extended Price"]
["Player jerseys to be dry fit moisture wicking tank style jersey with trim or piping to include a custom design of a sponsor, team, and/or mascot logo per team on front and a number on back. For all age groups. ","Augusta moisture 1351",78,"Youth",null,null,{"$f":"C31*F31","v":0}]
["Additional Charge:   2X - $________, 3X - $________, 4X - $________","Augusta moisture 1350",109,"Adult",null,null,{"$f":"C32*F32","v":0}]
["Matching shorts. 6U Tee-ball and 8U age groups. ","Augusta moisture 1293",71,"Youth",null,null,0]
["Female pro weight polyester elastic softball pants with zippered snaps and inside drawstring. Navy, black, or gray in color. 10U, 12U, & 16U age groups.","Alleson 605PLWY",38,"Youth",null,null,0]
["Additional Charge:   2X - $________, 3X - $________, 4X - $________","Alleson 605PLW ",78,"Adult",null,null,0]
["Player and Coaches Visors – Adjustable pro mesh. Visors must match jersey color or trim color.  WITH EMBROIDERY","Augusta 6228",78,"Youth",null,null,0]
[null,"Augusta 6227",109,"Adult",null,null,0]
["Player and Coaches Visors – Adjustable pro mesh. Visors must match jersey color or trim color.  WITHOUT EMROIDERY","Augusta 6228",78,"Youth",null,null,0]
[null,"Augusta 6227",109,"Adult",null,null,0]
["Athletic softball solid socks matching jersey or trim color. At least three sizes. For all age-groups. ","Augusta 6025",187,{"$nulls":3},0]
["Solid basic cotton coaches’ shirt with small logo on front-left of shirt and list of current sponsors on the back. Colors may change from year to year. ","Ultra cotton tee Gildan 2000",72,"Adult",null,null,0]
["Additional Charge:   2X - $________, 3X - $________, 4X - $________"]
["SOFTBALL SUBTOTAL:",{"$nulls":5},{"$f":"SUM(G31:G42)","v":0}]
[]
[]
["SOCCER UNIFORMS","Current Product  (Equal to or Better Than)","Estimated Order Qty.","Sizes","Brand Name & Item Number Quoted (If different from current product listed.)","Unit Price","Extended Price"]
["100% dry fit moisture wicking jersey with trim or piping and to include a custom design of a sponsor, team, and/or mascot logo on front and a jersey number on back.","Augusta Striker 215",375,"Youth",null,null,{"$f":"C47*F47","v":0}]
["Additional Charge:   2X - $________, 3X - $________, 4X - $________","Augusta Striker 214",133,"Adult",null,null,{"$f":"C48*F48","v":0}]
["Athletic dry fit moisture wicking shorts with drawstring black in color or matching jersey or trim color. 7\" length minimum","Augusta 1426",375,"Youth",null,null,0]
[null,"Augusta 1425",133,"Adult",null,null,0]
["Athletic soccer solid socks (3 sizes) matching the jersey or trim color.","Augusta 6035",508,{"$nulls":3},0]
["Solid basic cotton coaches’ shirts with small logo on front-left of shirt and list of current sponsors on the back. Colors may change from year to year.","Ultra cotton tee Gildan 2000",141,"Adult",null,null,0]
["Additional Charge:   2X - $________, 3X - $________, 4X - $________"]
["SOCCER SUBTOTAL:",{"$nulls":5},{"$f":"SUM(G47:G53)","v":0}]
[]
[]
[]
["BASKETBALL UNIFORMS","Current Product  (Equal to or Better Than)","Estimated Order Qty.","Sizes","Brand Name & Item Number Quoted (If different from current product listed.)","Unit Price","Extended Price"]
["Single ply athletic mesh or dry fit moisture wicking basketball tank top jersey and to include custom design of a sponsor, team, and/or mascot logo on front and number on the back. 6U age group.","Cobblestone M950Y",75,"Youth",null,null,{"$f":"C59*F59","v":0}]
["Male-fit reversible athletic mesh tank top jersey to include a custom design of a sponsor, team, and/or mascot logo per team with number on front as well as a number on back. 8U, 10U, 12U & 14U age groups. ","Alleson tricot mesh 560RY",175,"Youth",null,null,{"$f":"C60*F60","v":0}]
["Additional Charge:   2X - $________, 3X - $________, 4X - $________","Alleson tricot mesh 560R",25,"Adult",null,null,0]
["Female-fit reversible athletic mesh tank top jersey to include a custom design of a sponsor, team, and/or mascot logo per team with number on front as well as a number on back. 8U, 10U, 12U & 14U age groups.","Alleson tricot mesh 560RY",25,"Youth",null,null,0]
["Additional Charge:   2X - $________, 3X - $________, 4X - $________","Alleson tricot mesh 560RW",50,"Adult",null,null,0]
["Basketball style athletic mesh shorts with drawstring either black in color or matching jersey. 9\" length minimum","Augusta tricot mesh 9\" 849",250,"Youth",null,null,0]
["Additional Charge:   2X - $________, 3X - $________, 4X - $________","Augusta tricot mesh 9\" 848",75,"Adult",null,null,0]
["Solid basic cotton coaches shirts with small logo on front-left of shirt and list of current sponsors on the back. Colors may change from year to year.","Ultra cotton tee Gildan 2000",103,"Adult",null,null,0]
["Additional Charge:   2X - $________, 3X - $________, 4X - $________"]
["BASKETBALL SUBTOTAL:",{"$nulls":5},{"$f":"SUM(G59:G67)","v":0}]
[]
[]
["GRAND TOTAL (SUM OF ALL SUBTOTALS)",{"$nulls":5},{"$f":"G24+G43+G54+G68","v":0}]
[]
["List any charges for Set-Up or Art Work"]
[]
[]
["Company:"]
["Submitted By:"]
["Address:"]
["Phone:"]